[Event "Late-Titled-Tuesday-Blitz-August-29-2023"]
[Site "Chess.com"]
[Date "2023.08.29"]
[Round "4"]
[White "Schwindle"]
[Black "Lion_DL"]
[Result "1-0"]
[WhiteElo "2406"]
[BlackElo "2503"]
[TimeControl "180+1"]
[EndTime "14:37:26 PDT"]
[Termination "Schwindle won by resignation"]

1. e4 {[%clk 0:03:00.9]} 1... c5 {[%clk 0:03:00]} 2. Nf3 {[%clk 0:02:59.2]} 2...
e6 {[%clk 0:03:00]} 3. d4 {[%clk 0:02:59.3]} 3... cxd4 {[%clk 0:03:00.9]} 4.
Nxd4 {[%clk 0:03:00]} 4... a6 {[%clk 0:03:01.5]} 5. Bd3 {[%clk 0:02:59.7]} 5...
Nf6 {[%clk 0:03:01]} 6. Nc3 {[%clk 0:02:59.3]} 6... Qc7 {[%clk 0:02:59.4]} 7.
O-O {[%clk 0:02:58.1]} 7... Nc6 {[%clk 0:03:00.1]} 8. Nb3 {[%clk 0:02:58.1]}
8... b5 {[%clk 0:02:56.9]} 9. a3 {[%clk 0:02:58.2]} 9... Bb7 {[%clk 0:02:57]}
10. f4 {[%clk 0:02:58.2]} 10... d6 {[%clk 0:02:57.5]} 11. Kh1 {[%clk 0:02:57.3]}
11... Be7 {[%clk 0:02:57.5]} 12. Qe2 {[%clk 0:02:57.5]} 12... O-O {[%clk
0:02:57.2]} 13. Rf3 {[%clk 0:02:57.8]} 13... b4 {[%clk 0:02:47.6]} 14. Na4
{[%clk 0:02:53]} 14... Na5 {[%clk 0:02:30]} 15. Nxa5 {[%clk 0:02:34.2]} 15...
Qxa5 {[%clk 0:02:30.9]} 16. axb4 {[%clk 0:02:34.3]} 16... Qxb4 {[%clk
0:02:29.2]} 17. Bd2 {[%clk 0:02:26.2]} 17... Qd4 {[%clk 0:02:28.6]} 18. Bc3
{[%clk 0:02:08.6]} 18... Qa7 {[%clk 0:02:28]} 19. Rh3 {[%clk 0:02:05.2]} 19...
Bc6 {[%clk 0:01:59.1]} 20. e5 {[%clk 0:01:57]} 20... Ne4 {[%clk 0:00:49.1]} 21.
Bxe4 {[%clk 0:01:52.3]} 21... Bxe4 {[%clk 0:00:50]} 22. Qxe4 {[%clk 0:01:51.8]}
22... g6 {[%clk 0:00:50.7]} 23. exd6 {[%clk 0:01:35.2]} 23... Bxd6 {[%clk
0:00:51.6]} 24. f5 {[%clk 0:01:20.4]} 24... exf5 {[%clk 0:00:42.9]} 25. Qh4
{[%clk 0:01:04.6]} 25... f6 {[%clk 0:00:43.3]} 26. Bxf6 {[%clk 0:00:54.6]} 26...
Rae8 {[%clk 0:00:40.8]} 27. Qc4+ {[%clk 0:00:47.4]} 27... Qf7 {[%clk 0:00:36.3]}
28. Qxf7+ {[%clk 0:00:43.6]} 28... Rxf7 {[%clk 0:00:37.2]} 29. Bc3 {[%clk
0:00:40.8]} 29... Re4 {[%clk 0:00:33.3]} 30. Rd3 {[%clk 0:00:35.3]} 1-0

[Event "Late-Titled-Tuesday-Blitz-August-29-2023"]
[Site "Chess.com"]
[Date "2023.08.29"]
[Round "4"]
[White "Ducke13"]
[Black "korason34"]
[Result "1-0"]
[WhiteElo "2434"]
[BlackElo "2672"]
[TimeControl "180+1"]
[EndTime "14:37:32 PDT"]
[Termination "Ducke13 won by resignation"]

1. d4 {[%clk 0:02:54.2]} 1... d6 {[%clk 0:02:58.3]} 2. g3 {[%clk 0:02:52.6]}
2... g6 {[%clk 0:02:58.4]} 3. Bg2 {[%clk 0:02:51.8]} 3... Bg7 {[%clk 0:02:59.1]}
4. e4 {[%clk 0:02:51.3]} 4... Nd7 {[%clk 0:02:56.4]} 5. Ne2 {[%clk 0:02:50.3]}
5... Ngf6 {[%clk 0:02:56]} 6. Nbc3 {[%clk 0:02:45.6]} 6... O-O {[%clk 0:02:56]}
7. h3 {[%clk 0:02:45.5]} 7... c5 {[%clk 0:02:52.1]} 8. d5 {[%clk 0:02:43.7]}
8... a6 {[%clk 0:02:52.3]} 9. a4 {[%clk 0:02:43.2]} 9... Rb8 {[%clk 0:02:49.7]}
10. a5 {[%clk 0:02:41.1]} 10... b5 {[%clk 0:02:48.6]} 11. axb6 {[%clk
0:02:38.5]} 11... Nxb6 {[%clk 0:02:48.8]} 12. O-O {[%clk 0:02:39]} 12... e6
{[%clk 0:02:46.2]} 13. dxe6 {[%clk 0:02:34.1]} 13... fxe6 {[%clk 0:02:45.2]} 14.
b3 {[%clk 0:02:06.8]} 14... h6 {[%clk 0:02:39.2]} 15. Be3 {[%clk 0:01:57.9]}
15... Qc7 {[%clk 0:02:35.5]} 16. Qd2 {[%clk 0:01:56.2]} 16... Bb7 {[%clk
0:02:33.3]} 17. Bxh6 {[%clk 0:01:52.9]} 17... Rbd8 {[%clk 0:02:15.2]} 18. Bxg7
{[%clk 0:01:50.8]} 18... Kxg7 {[%clk 0:02:14.4]} 19. Nf4 {[%clk 0:01:48.4]}
19... Rfe8 {[%clk 0:02:11]} 20. Qe3 {[%clk 0:01:41.8]} 20... Qf7 {[%clk
0:02:03]} 21. e5 {[%clk 0:01:34.2]} 21... dxe5 {[%clk 0:02:00.9]} 22. Qxe5
{[%clk 0:01:30.1]} 22... Bxg2 {[%clk 0:02:00.2]} 23. Kxg2 {[%clk 0:01:26.1]}
23... Rc8 {[%clk 0:01:57.8]} 24. Rfd1 {[%clk 0:01:09.1]} 24... Qb7+ {[%clk
0:01:46.9]} 25. Kg1 {[%clk 0:01:04.7]} 25... Nd7 {[%clk 0:01:46]} 26. Rxd7+
{[%clk 0:00:55.1]} 26... Qxd7 {[%clk 0:01:43]} 27. Ne4 {[%clk 0:00:55.6]} 27...
Qd4 {[%clk 0:01:36.6]} 28. Qxd4 {[%clk 0:00:32.9]} 28... cxd4 {[%clk 0:01:37.5]}
29. Nd6 {[%clk 0:00:33.4]} 29... Rxc2 {[%clk 0:01:32.6]} 30. Nxe8+ {[%clk
0:00:33.9]} 30... Nxe8 {[%clk 0:01:31.2]} 31. Nxe6+ {[%clk 0:00:34.5]} 31... Kh6
{[%clk 0:01:25.4]} 32. Nxd4 {[%clk 0:00:35.2]} 32... Rd2 {[%clk 0:01:23.7]} 33.
Ne6 {[%clk 0:00:33.4]} 33... Rd6 {[%clk 0:01:21]} 34. Nf4 {[%clk 0:00:31.6]}
34... Nc7 {[%clk 0:01:19.8]} 35. Re1 {[%clk 0:00:27.2]} 35... Rb6 {[%clk
0:00:49.3]} 36. Re7 {[%clk 0:00:23.3]} 36... Nb5 {[%clk 0:00:46.8]} 37. Re6
{[%clk 0:00:22.5]} 1-0

[Event "Late-Titled-Tuesday-Blitz-August-29-2023"]
[Site "Chess.com"]
[Date "2023.08.29"]
[Round "4"]
[White "Alphafischer2019"]
[Black "zsoltkorpics"]
[Result "1-0"]
[WhiteElo "2517"]
[BlackElo "2377"]
[TimeControl "180+1"]
[EndTime "14:37:34 PDT"]
[Termination "Alphafischer2019 won on time"]

1. d4 {[%clk 0:03:00.9]} 1... Nf6 {[%clk 0:02:59.3]} 2. Bf4 {[%clk 0:03:00.7]}
2... d5 {[%clk 0:02:58.6]} 3. e3 {[%clk 0:02:58.9]} 3... c5 {[%clk 0:02:58.9]}
4. Nc3 {[%clk 0:02:56.3]} 4... cxd4 {[%clk 0:02:50.3]} 5. exd4 {[%clk
0:02:57.2]} 5... a6 {[%clk 0:02:50.8]} 6. Nf3 {[%clk 0:02:54.9]} 6... Nc6 {[%clk
0:02:50.5]} 7. Ne5 {[%clk 0:02:54.8]} 7... g6 {[%clk 0:02:50]} 8. Qd2 {[%clk
0:02:51.8]} 8... Bg7 {[%clk 0:02:50.1]} 9. h4 {[%clk 0:02:46.8]} 9... h5 {[%clk
0:02:46.3]} 10. O-O-O {[%clk 0:02:44.9]} 10... Na5 {[%clk 0:01:49.5]} 11. f3
{[%clk 0:02:42.2]} 11... b5 {[%clk 0:01:48.9]} 12. Kb1 {[%clk 0:02:42.2]} 12...
Nc4 {[%clk 0:01:40.7]} 13. Bxc4 {[%clk 0:02:42.5]} 13... bxc4 {[%clk 0:01:41.6]}
14. Rde1 {[%clk 0:02:42.6]} 14... Be6 {[%clk 0:01:39.5]} 15. Nxg6 {[%clk
0:02:40.5]} 15... Qb6 {[%clk 0:01:31.1]} 16. Nxh8 {[%clk 0:02:38.3]} 16... Bxh8
{[%clk 0:01:27.6]} 17. Na4 {[%clk 0:02:37.2]} 17... Qb5 {[%clk 0:01:23.1]} 18.
Nc5 {[%clk 0:02:37.7]} 18... Bf5 {[%clk 0:01:23.5]} 19. Qc3 {[%clk 0:02:31]}
19... Nd7 {[%clk 0:01:18.6]} 20. a4 {[%clk 0:02:22.2]} 20... Qb6 {[%clk
0:01:14.4]} 21. Qe3 {[%clk 0:02:10.9]} 21... e6 {[%clk 0:01:12.1]} 22. Nxd7
{[%clk 0:02:09.6]} 22... Kxd7 {[%clk 0:01:13]} 23. Rd1 {[%clk 0:02:03.6]} 23...
Ra7 {[%clk 0:01:09.8]} 24. Kc1 {[%clk 0:02:00.6]} 24... Rb7 {[%clk 0:01:07.1]}
25. Qc3 {[%clk 0:02:01.1]} 25... Bf6 {[%clk 0:01:02.3]} 26. Bg5 {[%clk
0:02:01.1]} 26... Bg7 {[%clk 0:01:00.3]} 27. g4 {[%clk 0:01:54.2]} 27... Bg6
{[%clk 0:00:58.3]} 28. gxh5 {[%clk 0:01:53.4]} 28... Bxh5 {[%clk 0:00:58.4]} 29.
Rhg1 {[%clk 0:01:51.8]} 29... Bf8 {[%clk 0:00:58.1]} 30. Bd2 {[%clk 0:01:52.4]}
30... a5 {[%clk 0:00:55.8]} 31. Rde1 {[%clk 0:01:41.7]} 31... Bb4 {[%clk
0:00:30.3]} 32. Qe3 {[%clk 0:01:40.6]} 32... Bd6 {[%clk 0:00:20.7]} 33. Bc3
{[%clk 0:01:36.6]} 33... Qc7 {[%clk 0:00:20.8]} 34. Kd1 {[%clk 0:01:30.4]} 34...
Bf4 {[%clk 0:00:19.7]} 35. Qf2 {[%clk 0:01:30.5]} 35... Qc6 {[%clk 0:00:18.4]}
36. Rg4 {[%clk 0:01:27.9]} 36... Bxg4 {[%clk 0:00:06.1]} 37. fxg4 {[%clk
0:01:28.8]} 37... Bd6 {[%clk 0:00:06.1]} 38. Qxf7+ {[%clk 0:01:28.6]} 38... Be7
{[%clk 0:00:06.3]} 39. g5 {[%clk 0:01:28.3]} 39... Qxa4 {[%clk 0:00:05.7]} 40.
Qxe6+ {[%clk 0:01:27.9]} 40... Kd8 {[%clk 0:00:02.5]} 41. Qxd5+ {[%clk
0:01:28.1]} 41... Qd7 {[%clk 0:00:02.4]} 42. Bxa5+ {[%clk 0:01:27.5]} 42... Kc8
{[%clk 0:00:02.2]} 43. Qg8+ {[%clk 0:01:26]} 1-0

[Event "Late-Titled-Tuesday-Blitz-August-29-2023"]
[Site "Chess.com"]
[Date "2023.08.29"]
[Round "4"]
[White "promen1999"]
[Black "h4parah5"]
[Result "1-0"]
[WhiteElo "2865"]
[BlackElo "2966"]
[TimeControl "180+1"]
[EndTime "14:37:38 PDT"]
[Termination "promen1999 won by resignation"]

1. e4 {[%clk 0:02:48.3]} 1... c5 {[%clk 0:02:59.5]} 2. Nf3 {[%clk 0:02:46.9]}
2... Nc6 {[%clk 0:03:00]} 3. Bb5 {[%clk 0:02:41.6]} 3... e6 {[%clk 0:02:58.6]}
4. Bxc6 {[%clk 0:02:40.7]} 4... bxc6 {[%clk 0:02:59.5]} 5. d3 {[%clk 0:02:38.5]}
5... Ne7 {[%clk 0:02:58.9]} 6. Nbd2 {[%clk 0:02:30]} 6... f6 {[%clk 0:02:53.4]}
7. e5 {[%clk 0:02:22.1]} 7... fxe5 {[%clk 0:02:52.2]} 8. b3 {[%clk 0:02:22.7]}
8... d6 {[%clk 0:02:50.2]} 9. Bb2 {[%clk 0:02:21.9]} 9... Ng6 {[%clk 0:02:50]}
10. h4 {[%clk 0:02:21.8]} 10... Be7 {[%clk 0:02:42.1]} 11. h5 {[%clk 0:02:15.2]}
11... Nf4 {[%clk 0:02:42.6]} 12. g3 {[%clk 0:02:13.6]} 12... Nd5 {[%clk
0:02:42.3]} 13. h6 {[%clk 0:02:08.8]} 13... g6 {[%clk 0:02:41.4]} 14. Qe2 {[%clk
0:02:07.6]} 14... O-O {[%clk 0:02:39]} 15. O-O-O {[%clk 0:02:04.3]} 15... a5
{[%clk 0:02:39]} 16. a4 {[%clk 0:02:02.5]} 16... Ba6 {[%clk 0:02:35.9]} 17. Rde1
{[%clk 0:01:58]} 17... Qe8 {[%clk 0:02:32.9]} 18. Ne4 {[%clk 0:01:29.9]} 18...
Qf7 {[%clk 0:02:31.3]} 19. Nfd2 {[%clk 0:01:29.8]} 19... Nb4 {[%clk 0:02:21.7]}
20. f4 {[%clk 0:01:28.5]} 20... d5 {[%clk 0:02:09.7]} 21. Nxc5 {[%clk
0:01:27.3]} 21... e4 {[%clk 0:01:25.1]} 22. Nxa6 {[%clk 0:01:22.5]} 22... Rxa6
{[%clk 0:01:25.3]} 23. dxe4 {[%clk 0:01:20.9]} 23... Raa8 {[%clk 0:01:24.4]} 24.
exd5 {[%clk 0:01:19.4]} 24... cxd5 {[%clk 0:01:23.3]} 25. Qe5 {[%clk 0:00:51.2]}
25... Bf6 {[%clk 0:01:21.6]} 26. Qxf6 {[%clk 0:00:51.9]} 26... Qxf6 {[%clk
0:01:22.5]} 27. Bxf6 {[%clk 0:00:52]} 27... Rxf6 {[%clk 0:01:23.4]} 28. Nf3
{[%clk 0:00:39.8]} 28... Rc8 {[%clk 0:01:22.9]} 29. Re2 {[%clk 0:00:40.5]} 29...
Rc3 {[%clk 0:01:21.5]} 30. Nd4 {[%clk 0:00:35.5]} 30... Rxg3 {[%clk 0:01:20.5]}
31. Nxe6 {[%clk 0:00:34.4]} 31... Rc3 {[%clk 0:01:15.3]} 32. Ng5 {[%clk
0:00:30]} 32... Rc8 {[%clk 0:01:01.9]} 33. Re7 {[%clk 0:00:27.7]} 33... Rxc2+
{[%clk 0:00:32.4]} 34. Kb1 {[%clk 0:00:26.7]} 34... Rxf4 {[%clk 0:00:30.6]} 35.
Rg7+ {[%clk 0:00:26.3]} 35... Kh8 {[%clk 0:00:29.4]} 36. Rxh7+ {[%clk
0:00:26.5]} 36... Kg8 {[%clk 0:00:29]} 37. Rg7+ {[%clk 0:00:26.6]} 1-0

[Event "Late-Titled-Tuesday-Blitz-August-29-2023"]
[Site "Chess.com"]
[Date "2023.08.29"]
[Round "4"]
[White "MikeSailer"]
[Black "viktorgen2021"]
[Result "0-1"]
[WhiteElo "2172"]
[BlackElo "2439"]
[TimeControl "180+1"]
[EndTime "14:37:38 PDT"]
[Termination "viktorgen2021 won on time"]

1. d4 {[%clk 0:02:52.5]} 1... Nf6 {[%clk 0:02:53.5]} 2. Bf4 {[%clk 0:02:49.7]}
2... d6 {[%clk 0:02:52.8]} 3. Nf3 {[%clk 0:02:44.2]} 3... g6 {[%clk 0:02:52.8]}
4. e3 {[%clk 0:02:44.3]} 4... Bg7 {[%clk 0:02:52.2]} 5. Be2 {[%clk 0:02:45.2]}
5... b6 {[%clk 0:02:51.6]} 6. O-O {[%clk 0:02:46.1]} 6... Bb7 {[%clk 0:02:50.7]}
7. h3 {[%clk 0:02:47]} 7... O-O {[%clk 0:02:51.3]} 8. c4 {[%clk 0:02:47.9]} 8...
e6 {[%clk 0:02:51.5]} 9. Nc3 {[%clk 0:02:48.8]} 9... Ne4 {[%clk 0:02:51.2]} 10.
a4 {[%clk 0:02:47.4]} 10... Nxc3 {[%clk 0:02:50.8]} 11. bxc3 {[%clk 0:02:48.3]}
11... a5 {[%clk 0:02:51.7]} 12. c5 {[%clk 0:02:41.7]} 12... bxc5 {[%clk
0:02:44.2]} 13. Rb1 {[%clk 0:02:41.8]} 13... Be4 {[%clk 0:02:42.4]} 14. Bd3
{[%clk 0:02:41.3]} 14... Bxd3 {[%clk 0:02:40.1]} 15. Qxd3 {[%clk 0:02:41.6]}
15... cxd4 {[%clk 0:02:37]} 16. exd4 {[%clk 0:02:41.4]} 16... Nd7 {[%clk
0:02:33.9]} 17. Rb7 {[%clk 0:02:33.1]} 17... Qc8 {[%clk 0:02:28.1]} 18. Rfb1
{[%clk 0:02:15.2]} 18... Nb6 {[%clk 0:02:26.5]} 19. R7xb6 {[%clk 0:02:15.6]}
19... cxb6 {[%clk 0:02:26.2]} 20. Bxd6 {[%clk 0:02:16.2]} 20... Rd8 {[%clk
0:02:25.4]} 21. Rxb6 {[%clk 0:02:16.7]} 21... Ra7 {[%clk 0:02:19]} 22. c4 {[%clk
0:01:51.2]} 22... Rb7 {[%clk 0:02:15.4]} 23. Rxb7 {[%clk 0:01:38.8]} 23... Qxb7
{[%clk 0:02:16.3]} 24. c5 {[%clk 0:01:23.6]} 24... Bf8 {[%clk 0:02:15.8]} 25.
Bxf8 {[%clk 0:01:20.1]} 25... Kxf8 {[%clk 0:02:12.3]} 26. Qc3 {[%clk 0:01:13.5]}
26... Qb4 {[%clk 0:02:06]} 27. Qa1 {[%clk 0:01:04.8]} 27... Rb8 {[%clk
0:02:04.4]} 28. Kh2 {[%clk 0:01:03.3]} 28... Qb2 {[%clk 0:02:03.5]} 29. Qe1
{[%clk 0:00:50.9]} 29... Qb4 {[%clk 0:01:59.2]} 30. Qe5 {[%clk 0:00:41.1]} 30...
Kg8 {[%clk 0:01:55.3]} 31. h4 {[%clk 0:00:34.5]} 31... Rd8 {[%clk 0:01:54.3]}
32. Qf6 {[%clk 0:00:13.1]} 32... Qb8+ {[%clk 0:01:47.3]} 33. Ne5 {[%clk
0:00:09.9]} 33... Qc7 {[%clk 0:01:41.4]} 34. h5 {[%clk 0:00:06.9]} 34... Rxd4
{[%clk 0:01:25.3]} 35. f4 {[%clk 0:00:07.4]} 35... gxh5 {[%clk 0:01:17.3]} 36.
Qg5+ {[%clk 0:00:06.8]} 36... Kf8 {[%clk 0:01:17.9]} 37. Qh6+ {[%clk 0:00:06.3]}
37... Ke8 {[%clk 0:01:17.7]} 38. Qxh7 {[%clk 0:00:05.9]} 38... Rxf4 {[%clk
0:01:16.1]} 39. Qh8+ {[%clk 0:00:02.8]} 39... Ke7 {[%clk 0:01:15.6]} 0-1

[Event "Late-Titled-Tuesday-Blitz-August-29-2023"]
[Site "Chess.com"]
[Date "2023.08.29"]
[Round "4"]
[White "Mariia89"]
[Black "egnfanclub"]
[Result "0-1"]
[WhiteElo "1965"]
[BlackElo "2301"]
[TimeControl "180+1"]
[EndTime "14:37:39 PDT"]
[Termination "egnfanclub won by resignation"]

1. d4 {[%clk 0:02:51.9]} 1... d5 {[%clk 0:02:59.5]} 2. c4 {[%clk 0:02:51.7]}
2... c6 {[%clk 0:02:57.6]} 3. e3 {[%clk 0:02:51.5]} 3... Nf6 {[%clk 0:02:57.8]}
4. Nf3 {[%clk 0:02:51]} 4... e6 {[%clk 0:02:58.2]} 5. Nc3 {[%clk 0:02:50.8]}
5... Nbd7 {[%clk 0:02:57.8]} 6. Bd3 {[%clk 0:02:50.8]} 6... dxc4 {[%clk
0:02:57.6]} 7. Bxc4 {[%clk 0:02:50.6]} 7... b5 {[%clk 0:02:58.5]} 8. Bd3 {[%clk
0:02:51.1]} 8... a6 {[%clk 0:02:59.4]} 9. e4 {[%clk 0:02:51.2]} 9... c5 {[%clk
0:02:59.5]} 10. e5 {[%clk 0:02:51.2]} 10... cxd4 {[%clk 0:02:59.8]} 11. Ne4
{[%clk 0:02:48.1]} 11... Nxe4 {[%clk 0:02:19.4]} 12. Bxe4 {[%clk 0:02:46.7]}
12... Bb4+ {[%clk 0:02:19.6]} 13. Bd2 {[%clk 0:02:43]} 13... Bxd2+ {[%clk
0:02:19.1]} 14. Qxd2 {[%clk 0:02:43.7]} 14... Rb8 {[%clk 0:02:18.8]} 15. Qxd4
{[%clk 0:02:40.2]} 15... Qa5+ {[%clk 0:02:13]} 16. b4 {[%clk 0:02:38.2]} 16...
Qb6 {[%clk 0:02:08.2]} 17. Qd2 {[%clk 0:02:20]} 17... O-O {[%clk 0:01:58.9]} 18.
O-O {[%clk 0:02:14.3]} 18... Rd8 {[%clk 0:01:58.4]} 19. Qg5 {[%clk 0:02:13.8]}
19... h6 {[%clk 0:01:49.8]} 20. Qf4 {[%clk 0:01:46.8]} 20... Bb7 {[%clk
0:01:47.4]} 21. Bc2 {[%clk 0:01:34]} 21... Bxf3 {[%clk 0:01:41]} 22. gxf3 {[%clk
0:01:33.7]} 22... Qc7 {[%clk 0:01:41.2]} 23. Qe4 {[%clk 0:01:30.5]} 23... Qxe5
{[%clk 0:01:36.8]} 24. Qh7+ {[%clk 0:01:29.6]} 24... Kf8 {[%clk 0:01:36.9]} 25.
Rfe1 {[%clk 0:01:19.8]} 25... Qg5+ {[%clk 0:01:34.8]} 26. Kh1 {[%clk 0:01:19]}
26... Nf6 {[%clk 0:01:30.9]} 27. f4 {[%clk 0:00:48.9]} 27... Qd5+ {[%clk
0:01:14.8]} 28. Be4 {[%clk 0:00:47.3]} 28... Nxh7 {[%clk 0:01:14.8]} 29. Bxd5
{[%clk 0:00:45.9]} 29... Rxd5 {[%clk 0:01:14.9]} 30. Kg2 {[%clk 0:00:41.7]}
30... Rc8 {[%clk 0:01:13.4]} 31. Re2 {[%clk 0:00:38.9]} 31... Nf6 {[%clk
0:01:12.8]} 32. a4 {[%clk 0:00:38.8]} 32... Rc4 {[%clk 0:01:10.6]} 33. axb5
{[%clk 0:00:37.9]} 33... axb5 {[%clk 0:01:11.5]} 34. Ra8+ {[%clk 0:00:35.6]}
34... Ke7 {[%clk 0:01:11.5]} 35. Rb8 {[%clk 0:00:33]} 35... Rxb4 {[%clk
0:01:04.3]} 36. Rb7+ {[%clk 0:00:32.9]} 36... Rd7 {[%clk 0:01:03.7]} 37. Rb6
{[%clk 0:00:32.2]} 37... Nd5 {[%clk 0:01:02.1]} 0-1

[Event "Late-Titled-Tuesday-Blitz-August-29-2023"]
[Site "Chess.com"]
[Date "2023.08.29"]
[Round "4"]
[White "jamengrand"]
[Black "newyorkmouse"]
[Result "1/2-1/2"]
[WhiteElo "2348"]
[BlackElo "2479"]
[TimeControl "180+1"]
[EndTime "14:37:42 PDT"]
[Termination "Game drawn by repetition"]

1. e4 {[%clk 0:03:00.9]} 1... a6 {[%clk 0:02:51.7]} 2. d4 {[%clk 0:03:00.2]}
2... h6 {[%clk 0:02:50.5]} 3. c4 {[%clk 0:02:59.8]} 3... g6 {[%clk 0:02:49.6]}
4. Nc3 {[%clk 0:03:00]} 4... b6 {[%clk 0:02:49.8]} 5. f4 {[%clk 0:03:00.2]} 5...
Bg7 {[%clk 0:02:49.7]} 6. Nf3 {[%clk 0:03:00.5]} 6... Bb7 {[%clk 0:02:49.8]} 7.
Bd3 {[%clk 0:03:00.3]} 7... e6 {[%clk 0:02:49.5]} 8. e5 {[%clk 0:02:54.7]} 8...
Ne7 {[%clk 0:02:48.9]} 9. Qe2 {[%clk 0:02:54]} 9... Nf5 {[%clk 0:02:44.4]} 10.
O-O {[%clk 0:02:47.9]} 10... Bf8 {[%clk 0:02:24.8]} 11. Ne4 {[%clk 0:02:42.2]}
11... Be7 {[%clk 0:02:23.1]} 12. Bd2 {[%clk 0:02:35.5]} 12... Nc6 {[%clk
0:02:18]} 13. Bc3 {[%clk 0:02:35]} 13... O-O {[%clk 0:02:09.5]} 14. g4 {[%clk
0:02:12.4]} 14... Nh4 {[%clk 0:02:06.5]} 15. Nxh4 {[%clk 0:02:12.4]} 15... Bxh4
{[%clk 0:02:07.2]} 16. g5 {[%clk 0:02:13]} 16... hxg5 {[%clk 0:02:04]} 17. fxg5
{[%clk 0:01:33.8]} 17... Bxg5 {[%clk 0:02:02.7]} 18. d5 {[%clk 0:01:10]} 18...
Na7 {[%clk 0:01:22.2]} 19. Nf6+ {[%clk 0:01:01.7]} 19... Kg7 {[%clk 0:01:21.2]}
20. Rf3 {[%clk 0:00:52]} 20... b5 {[%clk 0:01:09.2]} 21. b3 {[%clk 0:00:50.8]}
21... bxc4 {[%clk 0:00:56.7]} 22. bxc4 {[%clk 0:00:49.2]} 22... c6 {[%clk
0:00:50.8]} 23. Raf1 {[%clk 0:00:31.1]} 23... cxd5 {[%clk 0:00:47.5]} 24. Qg2
{[%clk 0:00:28.7]} 24... Qb6+ {[%clk 0:00:40.9]} 25. Kh1 {[%clk 0:00:28]} 25...
dxc4 {[%clk 0:00:37.2]} 26. Qxg5 {[%clk 0:00:20.2]} 26... cxd3 {[%clk
0:00:29.8]} 27. Nh5+ {[%clk 0:00:19.6]} 27... Kh7 {[%clk 0:00:28.2]} 28. Nf6+
{[%clk 0:00:15.5]} 28... Kg7 {[%clk 0:00:28.6]} 29. Nh5+ {[%clk 0:00:05]} 29...
Kh7 {[%clk 0:00:28.6]} 30. Nf6+ {[%clk 0:00:05.3]} 30... Kg7 {[%clk 0:00:29]}
1/2-1/2

[Event "Late-Titled-Tuesday-Blitz-August-29-2023"]
[Site "Chess.com"]
[Date "2023.08.29"]
[Round "4"]
[White "MYMChessAcademy"]
[Black "leschebaza"]
[Result "1-0"]
[WhiteElo "2234"]
[BlackElo "2397"]
[TimeControl "180+1"]
[EndTime "14:37:43 PDT"]
[Termination "MYMChessAcademy won by checkmate"]

1. e4 {[%clk 0:03:00.9]} 1... e6 {[%clk 0:02:59.8]} 2. d4 {[%clk 0:03:00.6]}
2... d5 {[%clk 0:02:59.9]} 3. e5 {[%clk 0:03:01.2]} 3... c5 {[%clk 0:03:00]} 4.
c3 {[%clk 0:03:01.9]} 4... Nc6 {[%clk 0:03:00.4]} 5. Nf3 {[%clk 0:03:02]} 5...
Qb6 {[%clk 0:03:00.9]} 6. a3 {[%clk 0:03:02.1]} 6... a5 {[%clk 0:02:56.3]} 7.
Be2 {[%clk 0:02:58.1]} 7... Nge7 {[%clk 0:02:49.4]} 8. Bd3 {[%clk 0:02:56.4]}
8... Bd7 {[%clk 0:02:33.7]} 9. Bc2 {[%clk 0:02:55.3]} 9... Qa6 {[%clk
0:02:32.6]} 10. Bd3 {[%clk 0:02:50.4]} 10... Qb6 {[%clk 0:02:23]} 11. Bc2 {[%clk
0:02:49.1]} 11... Nf5 {[%clk 0:02:18.9]} 12. Bxf5 {[%clk 0:02:40.4]} 12... exf5
{[%clk 0:02:19.8]} 13. O-O {[%clk 0:02:40.5]} 13... Be7 {[%clk 0:02:17.3]} 14.
Re1 {[%clk 0:02:08.5]} 14... Be6 {[%clk 0:02:16.5]} 15. Ng5 {[%clk 0:02:03]}
15... O-O {[%clk 0:02:14.4]} 16. Qh5 {[%clk 0:01:39.1]} 16... Bxg5 {[%clk
0:02:04.3]} 17. Bxg5 {[%clk 0:01:33.4]} 17... cxd4 {[%clk 0:01:59.1]} 18. cxd4
{[%clk 0:01:17.2]} 18... Qxd4 {[%clk 0:01:47.2]} 19. Be3 {[%clk 0:01:10.1]}
19... Qxb2 {[%clk 0:01:43.1]} 20. Nd2 {[%clk 0:01:05.9]} 20... Nxe5 {[%clk
0:01:21.2]} 21. Rab1 {[%clk 0:00:50.9]} 21... Qxa3 {[%clk 0:01:21.2]} 22. Bd4
{[%clk 0:00:46]} 22... Ng6 {[%clk 0:01:17.1]} 23. Nf3 {[%clk 0:00:41.9]} 23...
Rfe8 {[%clk 0:00:24.7]} 24. Ng5 {[%clk 0:00:39.5]} 24... Nf8 {[%clk 0:00:25.3]}
25. Rxe6 {[%clk 0:00:26.4]} 25... g6 {[%clk 0:00:23.9]} 26. Qh6 {[%clk
0:00:20.5]} 26... f6 {[%clk 0:00:17.7]} 27. Rxf6 {[%clk 0:00:18.4]} 27... Qd3
{[%clk 0:00:14.2]} 28. Rxf8+ {[%clk 0:00:17]} 28... Rxf8 {[%clk 0:00:14.6]} 29.
Qg7# {[%clk 0:00:17.7]} 1-0